[Event "Betsys MČR v online bleskovém šachu 2021"]
[Site "Chess.com"]
[Date "2021.04.17"]
[Round "5"]
[White "sodikus"]
[Black "Simago"]
[Result "1-0"]
[WhiteElo "2332"]
[BlackElo "2094"]
[TimeControl "180+1"]
[EndTime "9:48:11 PDT"]
[Termination "Uživatel sodikus zvítězil po vzdání soupeře"]

1. Nf3 {[%clk 0:03:00.9]} 1... Nf6 {[%clk 0:02:59.6]} 2. b3 {[%clk 0:02:54.7]}
2... d6 {[%clk 0:02:58.5]} 3. d4 {[%clk 0:02:54]} 3... Nbd7 {[%clk 0:02:59.4]}
4. Bb2 {[%clk 0:02:53.7]} 4... g6 {[%clk 0:02:59.4]} 5. g3 {[%clk 0:02:53.1]}
5... Bg7 {[%clk 0:02:59.5]} 6. Bg2 {[%clk 0:02:53.5]} 6... O-O {[%clk
0:02:59.8]} 7. O-O {[%clk 0:02:53.6]} 7... e5 {[%clk 0:02:57.7]} 8. dxe5 {[%clk
0:02:53.1]} 8... Ng4 {[%clk 0:02:57.4]} 9. c4 {[%clk 0:02:52.9]} 9... Ngxe5
{[%clk 0:02:56.7]} 10. Nxe5 {[%clk 0:02:53.1]} 10... Nxe5 {[%clk 0:02:56.3]} 11.
Nc3 {[%clk 0:02:53.6]} 11... c6 {[%clk 0:02:48.3]} 12. Qc1 {[%clk 0:02:51.4]}
12... Qe7 {[%clk 0:02:44.2]} 13. Rd1 {[%clk 0:02:48.2]} 13... Be6 {[%clk
0:02:35]} 14. Ne4 {[%clk 0:02:38]} 14... Rad8 {[%clk 0:02:24.8]} 15. Ba3 {[%clk
0:02:33.9]} 15... c5 {[%clk 0:02:17.8]} 16. Bb2 {[%clk 0:02:29.9]} 16... a6
{[%clk 0:02:12.7]} 17. Nc3 {[%clk 0:02:27.7]} 17... Nc6 {[%clk 0:01:57.6]} 18.
e3 {[%clk 0:02:22.1]} 18... Bg4 {[%clk 0:01:38.8]} 19. Nd5 {[%clk 0:02:16.5]}
19... Qe6 {[%clk 0:01:25.5]} 20. Bxg7 {[%clk 0:02:12.1]} 20... Kxg7 {[%clk
0:01:17.7]} 21. Qc3+ {[%clk 0:02:06.6]} 21... Qe5 {[%clk 0:01:12.4]} 22. Rd2
{[%clk 0:02:04.6]} 22... Be6 {[%clk 0:00:52.8]} 23. f4 {[%clk 0:01:56]} 23...
Qxc3 {[%clk 0:00:49.3]} 24. Nxc3 {[%clk 0:01:56.9]} 24... Rd7 {[%clk 0:00:31.1]}
25. h3 {[%clk 0:01:51.2]} 25... Rfd8 {[%clk 0:00:25.9]} 26. Rad1 {[%clk
0:01:50.1]} 26... Kf8 {[%clk 0:00:23]} 27. Kf2 {[%clk 0:01:33.3]} 27... Ke7
{[%clk 0:00:14.5]} 28. Na4 {[%clk 0:01:24.8]} 28... b5 {[%clk 0:00:08.6]} 29.
Bxc6 {[%clk 0:01:20.7]} 29... bxa4 {[%clk 0:00:08.7]} 30. Bxd7 {[%clk
0:01:18.6]} 30... Rxd7 {[%clk 0:00:08.7]} 31. g4 {[%clk 0:01:15.4]} 31... f5
{[%clk 0:00:06.3]} 32. Kf3 {[%clk 0:01:12]} 32... axb3 {[%clk 0:00:02.8]} 33.
axb3 {[%clk 0:01:11.6]} 33... a5 {[%clk 0:00:02.8]} 34. e4 {[%clk 0:00:58]}
34... fxg4+ {[%clk 0:00:02.8]} 35. hxg4 {[%clk 0:00:57.8]} 35... h5 {[%clk
0:00:03.7]} 36. f5 {[%clk 0:00:50.9]} 36... hxg4+ {[%clk 0:00:03.4]} 37. Kxg4
{[%clk 0:00:51.2]} 37... gxf5+ {[%clk 0:00:04.3]} 38. exf5 {[%clk 0:00:51.5]}
38... Bf7 {[%clk 0:00:04.5]} 39. Kg5 {[%clk 0:00:48.9]} 39... a4 {[%clk
0:00:04.3]} 40. f6+ {[%clk 0:00:46.8]} 40... Kf8 {[%clk 0:00:04.5]} 41. bxa4
{[%clk 0:00:44.8]} 41... Bxc4 {[%clk 0:00:04]} 42. Rxd6 {[%clk 0:00:44.5]} 42...
Ra7 {[%clk 0:00:02.6]} 43. Rd8+ {[%clk 0:00:42.3]} 43... Kf7 {[%clk 0:00:03.1]}
44. R1d7+ {[%clk 0:00:41.7]} 44... Rxd7 {[%clk 0:00:03.3]} 45. Rxd7+ {[%clk
0:00:42]} 45... Kf8 {[%clk 0:00:03.9]} 46. Rc7 {[%clk 0:00:41]} 46... Bb3 {[%clk
0:00:04]} 47. a5 {[%clk 0:00:35.4]} 47... c4 {[%clk 0:00:03.8]} 48. a6 {[%clk
0:00:34.5]} 48... Bc2 {[%clk 0:00:01.8]} 49. a7 {[%clk 0:00:30.7]} 49... Be4
{[%clk 0:00:02.3]} 50. Rxc4 {[%clk 0:00:29.5]} 50... Bd5 {[%clk 0:00:02]} 51.
Rc8+ {[%clk 0:00:22.4]} 51... Kf7 {[%clk 0:00:01.9]} 52. a8=Q {[%clk 0:00:20.8]}
52... Bxa8 {[%clk 0:00:02.5]} 53. Rxa8 {[%clk 0:00:20.8]} 53... Ke6 {[%clk
0:00:02.6]} 54. Kg6 {[%clk 0:00:21.1]} 54... Ke5 {[%clk 0:00:01.7]} 55. f7
{[%clk 0:00:21.1]} 1-0

[Event "Betsys MČR v online bleskovém šachu 2021"]
[Site "Chess.com"]
[Date "2021.04.17"]
[Round "5"]
[White "domecek"]
[Black "JustFilip05"]
[Result "0-1"]
[WhiteElo "1963"]
[BlackElo "2140"]
[TimeControl "180+1"]
[EndTime "9:48:11 PDT"]
[Termination "Uživatel JustFilip05 zvítězil na čas"]

1. d4 {[%clk 0:03:00.9]} 1... e5 {[%clk 0:02:50.5]} 2. dxe5 {[%clk 0:02:59.5]}
2... Nc6 {[%clk 0:02:50.4]} 3. Nf3 {[%clk 0:02:59.7]} 3... Qe7 {[%clk
0:02:50.1]} 4. g3 {[%clk 0:02:59.7]} 4... Nxe5 {[%clk 0:02:49.9]} 5. Bg2 {[%clk
0:03:00]} 5... Nxf3+ {[%clk 0:02:45.1]} 6. Bxf3 {[%clk 0:02:59.5]} 6... c6
{[%clk 0:02:45.8]} 7. O-O {[%clk 0:02:58.9]} 7... d5 {[%clk 0:02:46.3]} 8. Re1
{[%clk 0:02:55.5]} 8... Qc7 {[%clk 0:02:31.7]} 9. Bf4 {[%clk 0:02:53.1]} 9...
Bd6 {[%clk 0:02:30.2]} 10. Bxd6 {[%clk 0:02:52]} 10... Qxd6 {[%clk 0:02:30]} 11.
e4 {[%clk 0:02:52.1]} 11... Be6 {[%clk 0:02:04]} 12. exd5 {[%clk 0:02:45.6]}
12... cxd5 {[%clk 0:02:04.9]} 13. c4 {[%clk 0:02:44.1]} 13... d4 {[%clk
0:01:47.7]} 14. Bxb7 {[%clk 0:02:40.2]} 14... Rb8 {[%clk 0:01:47.1]} 15. Bd5
{[%clk 0:02:36.2]} 15... Ne7 {[%clk 0:01:37.4]} 16. Qxd4 {[%clk 0:02:29.9]}
16... O-O {[%clk 0:01:35.6]} 17. b3 {[%clk 0:02:21.6]} 17... Nxd5 {[%clk
0:01:20.6]} 18. Nc3 {[%clk 0:02:09.9]} 18... Qb6 {[%clk 0:01:11]} 19. c5 {[%clk
0:01:42.9]} 19... Qb4 {[%clk 0:01:06.3]} 20. Qxb4 {[%clk 0:01:38.4]} 20... Nxb4
{[%clk 0:01:07.2]} 21. Re2 {[%clk 0:01:32.7]} 21... Rfc8 {[%clk 0:00:58.1]} 22.
a3 {[%clk 0:01:31.3]} 22... Nd3 {[%clk 0:00:58.2]} 23. b4 {[%clk 0:01:27.9]}
23... a5 {[%clk 0:00:57.6]} 24. Re3 {[%clk 0:00:50.5]} 24... axb4 {[%clk
0:00:40.9]} 25. Rxd3 {[%clk 0:00:49.4]} 25... bxc3 {[%clk 0:00:38.3]} 26. Rxc3
{[%clk 0:00:47.5]} 26... Rb3 {[%clk 0:00:38.2]} 27. Rac1 {[%clk 0:00:43]} 27...
Kf8 {[%clk 0:00:33.6]} 28. f4 {[%clk 0:00:36.3]} 28... Ke7 {[%clk 0:00:31.1]}
29. Kf2 {[%clk 0:00:34.9]} 29... Ra8 {[%clk 0:00:26.4]} 30. Rxb3 {[%clk
0:00:28.6]} 30... Bxb3 {[%clk 0:00:27.3]} 31. Rc3 {[%clk 0:00:26.1]} 31... Bd5
{[%clk 0:00:16.7]} 32. Ke3 {[%clk 0:00:24.3]} 32... Kd7 {[%clk 0:00:16.3]} 33.
Kd4 {[%clk 0:00:23.5]} 33... Kc6 {[%clk 0:00:16.3]} 34. f5 {[%clk 0:00:15.1]}
34... Ra4+ {[%clk 0:00:16.4]} 35. Ke3 {[%clk 0:00:14]} 35... Re4+ {[%clk
0:00:16.1]} 36. Kd3 {[%clk 0:00:12.7]} 36... Re5 {[%clk 0:00:15.6]} 37. g4
{[%clk 0:00:12.1]} 37... Re4 {[%clk 0:00:16]} 38. h3 {[%clk 0:00:11.6]} 38...
Rf4 {[%clk 0:00:16.5]} 39. Ke2 {[%clk 0:00:10.6]} 39... Ra4 {[%clk 0:00:15.4]}
40. Kf2 {[%clk 0:00:08.3]} 40... Ra5 {[%clk 0:00:15.7]} 41. Kg3 {[%clk
0:00:07.3]} 41... Rxc5 {[%clk 0:00:15.7]} 42. Re3 {[%clk 0:00:07.4]} 42... Kd6
{[%clk 0:00:14.8]} 43. h4 {[%clk 0:00:06.8]} 43... Kd7 {[%clk 0:00:14.5]} 44. g5
{[%clk 0:00:06.4]} 44... Rb5 {[%clk 0:00:14]} 45. Kf4 {[%clk 0:00:06.3]} 45...
Ra5 {[%clk 0:00:13.1]} 46. f6 {[%clk 0:00:04.7]} 46... gxf6 {[%clk 0:00:10.9]}
47. gxf6 {[%clk 0:00:03.6]} 47... Be6 {[%clk 0:00:11.6]} 48. Rd3+ {[%clk
0:00:01.3]} 48... Ke8 {[%clk 0:00:11]} 0-1

[Event "Betsys MČR v online bleskovém šachu 2021"]
[Site "Chess.com"]
[Date "2021.04.17"]
[Round "5"]
[White "JanBaraCZE"]
[Black "Fafin1"]
[Result "1-0"]
[WhiteElo "1586"]
[BlackElo "1163"]
[TimeControl "180+1"]
[EndTime "9:48:11 PDT"]
[Termination "Uživatel JanBaraCZE zvítězil na čas"]

1. d4 {[%clk 0:03:00.9]} 1... d5 {[%clk 0:02:58.3]} 2. c4 {[%clk 0:03:01.8]}
2... c6 {[%clk 0:02:56.2]} 3. cxd5 {[%clk 0:03:02.7]} 3... cxd5 {[%clk
0:02:54.1]} 4. Nc3 {[%clk 0:03:03.6]} 4... e6 {[%clk 0:02:49.3]} 5. Nf3 {[%clk
0:03:04.5]} 5... Bb4 {[%clk 0:02:47.9]} 6. g3 {[%clk 0:03:05.4]} 6... Nc6 {[%clk
0:02:47]} 7. Bg2 {[%clk 0:03:05.8]} 7... Nge7 {[%clk 0:02:44.7]} 8. O-O {[%clk
0:03:06.1]} 8... Bd7 {[%clk 0:02:41.4]} 9. a3 {[%clk 0:03:06.4]} 9... Ba5 {[%clk
0:02:38.5]} 10. b4 {[%clk 0:03:06.2]} 10... Bb6 {[%clk 0:02:38.3]} 11. Na4
{[%clk 0:03:04.9]} 11... O-O {[%clk 0:02:22.6]} 12. Nxb6 {[%clk 0:03:04.1]}
12... Qxb6 {[%clk 0:02:20]} 13. Rb1 {[%clk 0:03:00.1]} 13... h6 {[%clk
0:02:18.9]} 14. Bf4 {[%clk 0:02:43.3]} 14... Nf5 {[%clk 0:02:17]} 15. e3 {[%clk
0:02:40.5]} 15... Nce7 {[%clk 0:02:09.4]} 16. Ne5 {[%clk 0:02:34.6]} 16... Bb5
{[%clk 0:02:07.1]} 17. Re1 {[%clk 0:02:29.3]} 17... Rfd8 {[%clk 0:01:56.9]} 18.
a4 {[%clk 0:02:25.4]} 18... Be8 {[%clk 0:01:48.2]} 19. Nd3 {[%clk 0:01:51.7]}
19... Nc6 {[%clk 0:01:46.8]} 20. b5 {[%clk 0:01:48.1]} 20... Nce7 {[%clk
0:01:45.9]} 21. Nc5 {[%clk 0:01:47]} 21... Rdc8 {[%clk 0:01:33.7]} 22. Qd2
{[%clk 0:01:40.1]} 22... Ng6 {[%clk 0:01:32.3]} 23. Bf1 {[%clk 0:01:35.3]} 23...
Nxf4 {[%clk 0:01:29.6]} 24. exf4 {[%clk 0:01:34.8]} 24... Nd6 {[%clk 0:01:12.5]}
25. a5 {[%clk 0:01:32.3]} 25... Qc7 {[%clk 0:01:03.9]} 26. b6 {[%clk 0:01:22.2]}
26... axb6 {[%clk 0:01:01.8]} 27. axb6 {[%clk 0:01:21.8]} 27... Qc6 {[%clk
0:01:00.1]} 28. Nd3 {[%clk 0:01:10.6]} 28... Nc4 {[%clk 0:00:54.1]} 29. Qe2
{[%clk 0:00:55.7]} 29... Nxb6 {[%clk 0:00:53.2]} 30. Ne5 {[%clk 0:00:53.2]}
30... Qd6 {[%clk 0:00:50.9]} 31. Bg2 {[%clk 0:00:48.3]} 31... Nd7 {[%clk
0:00:49.3]} 32. Nxd7 {[%clk 0:00:47.6]} 32... Qxd7 {[%clk 0:00:47]} 33. Qf3
{[%clk 0:00:38.9]} 33... Ra4 {[%clk 0:00:42.7]} 34. f5 {[%clk 0:00:36.1]} 34...
exf5 {[%clk 0:00:35.6]} 35. Qxd5 {[%clk 0:00:35.1]} 35... Qxd5 {[%clk
0:00:33.6]} 36. Bxd5 {[%clk 0:00:35.2]} 36... Rxd4 {[%clk 0:00:28.5]} 37. Bxb7
{[%clk 0:00:30.9]} 37... Rb8 {[%clk 0:00:26.5]} 38. Bf3 {[%clk 0:00:18.8]} 38...
Rxb1 {[%clk 0:00:23.2]} 39. Rxb1 {[%clk 0:00:19.7]} 39... Kh7 {[%clk 0:00:20.7]}
40. Kg2 {[%clk 0:00:19.5]} 40... Ba4 {[%clk 0:00:16.7]} 41. Rb7 {[%clk
0:00:18.2]} 41... f6 {[%clk 0:00:16.1]} 42. Re7 {[%clk 0:00:15.6]} 42... f4
{[%clk 0:00:14.3]} 43. gxf4 {[%clk 0:00:14.9]} 43... Rxf4 {[%clk 0:00:10.4]} 44.
Kg3 {[%clk 0:00:15.1]} 44... Rd4 {[%clk 0:00:09]} 45. Re3 {[%clk 0:00:12.9]}
45... Bd7 {[%clk 0:00:05.9]} 46. h3 {[%clk 0:00:11.7]} 46... f5 {[%clk 0:00:01]}
47. Re7 {[%clk 0:00:09.3]} 1-0

[Event "Betsys MČR v online bleskovém šachu 2021"]
[Site "Chess.com"]
[Date "2021.04.17"]
[Round "5"]
[White "Klokan64"]
[Black "zaciname"]
[Result "1-0"]
[WhiteElo "1417"]
[BlackElo "724"]
[TimeControl "180+1"]
[EndTime "9:48:12 PDT"]
[Termination "Uživatel Klokan64 zvítězil na čas"]

1. d4 {[%clk 0:03:00.9]} 1... Nf6 {[%clk 0:02:58.1]} 2. Nf3 {[%clk 0:03:00.5]}
2... e6 {[%clk 0:02:58.3]} 3. Bg5 {[%clk 0:02:59.5]} 3... d5 {[%clk 0:02:57.9]}
4. e3 {[%clk 0:02:59]} 4... Be7 {[%clk 0:02:57.8]} 5. Bb5+ {[%clk 0:02:56.8]}
5... c6 {[%clk 0:02:56.6]} 6. Ba4 {[%clk 0:02:55.9]} 6... b5 {[%clk 0:02:52.9]}
7. Bb3 {[%clk 0:02:55.7]} 7... a5 {[%clk 0:02:52.3]} 8. a3 {[%clk 0:02:44.6]}
8... a4 {[%clk 0:02:51.8]} 9. Ba2 {[%clk 0:02:44.7]} 9... Ne4 {[%clk 0:02:45]}
10. Bxe7 {[%clk 0:02:41.1]} 10... Qxe7 {[%clk 0:02:44.6]} 11. Nbd2 {[%clk
0:02:37.9]} 11... Nxd2 {[%clk 0:02:42.6]} 12. Qxd2 {[%clk 0:02:37.7]} 12... O-O
{[%clk 0:02:42.7]} 13. c3 {[%clk 0:02:35]} 13... Nd7 {[%clk 0:02:40.4]} 14. Bb1
{[%clk 0:02:28.7]} 14... Nf6 {[%clk 0:02:38.9]} 15. Bc2 {[%clk 0:02:19.7]} 15...
c5 {[%clk 0:02:27.6]} 16. O-O {[%clk 0:02:15.7]} 16... c4 {[%clk 0:02:26.4]} 17.
Ne5 {[%clk 0:02:12.8]} 17... Ne4 {[%clk 0:02:11.6]} 18. Bxe4 {[%clk 0:02:05.5]}
18... dxe4 {[%clk 0:02:11]} 19. f4 {[%clk 0:01:59.3]} 19... exf3 {[%clk
0:02:06.7]} 20. Rxf3 {[%clk 0:01:57.8]} 20... Bb7 {[%clk 0:02:06.3]} 21. Rg3
{[%clk 0:01:56]} 21... f6 {[%clk 0:01:58.7]} 22. Ng4 {[%clk 0:01:50.8]} 22...
Rae8 {[%clk 0:01:47]} 23. Rf1 {[%clk 0:01:48.5]} 23... e5 {[%clk 0:01:43.2]} 24.
Qf2 {[%clk 0:01:02.8]} 24... exd4 {[%clk 0:01:38.6]} 25. exd4 {[%clk 0:01:01.7]}
25... Qe2 {[%clk 0:01:30.4]} 26. Qxe2 {[%clk 0:00:58.5]} 26... Rxe2 {[%clk
0:01:28.6]} 27. Rb1 {[%clk 0:00:51.6]} 27... Rfe8 {[%clk 0:01:25.2]} 28. h4
{[%clk 0:00:49.1]} 28... Kf7 {[%clk 0:01:22.8]} 29. Kh2 {[%clk 0:00:45.1]} 29...
Re1 {[%clk 0:01:20.2]} 30. Rxe1 {[%clk 0:00:44]} 30... Rxe1 {[%clk 0:01:19.3]}
31. Re3 {[%clk 0:00:41]} 31... Rxe3 {[%clk 0:01:18.1]} 32. Nxe3 {[%clk
0:00:40.4]} 32... Ke6 {[%clk 0:01:17]} 33. Kg3 {[%clk 0:00:40.3]} 33... g6
{[%clk 0:01:11.2]} 34. Kf4 {[%clk 0:00:39.9]} 34... h5 {[%clk 0:01:10.5]} 35. g3
{[%clk 0:00:39.5]} 35... Bc6 {[%clk 0:01:02.7]} 36. g4 {[%clk 0:00:37.9]} 36...
hxg4 {[%clk 0:00:50.1]} 37. Nxg4 {[%clk 0:00:36.8]} 37... f5 {[%clk 0:00:45.4]}
38. Ne3 {[%clk 0:00:36.4]} 38... Be4 {[%clk 0:00:43.9]} 39. Kg5 {[%clk
0:00:35.1]} 39... Kf7 {[%clk 0:00:39.4]} 40. d5 {[%clk 0:00:33.7]} 40... Kg7
{[%clk 0:00:24.7]} 41. h5 {[%clk 0:00:32.2]} 41... gxh5 {[%clk 0:00:22.1]} 42.
Kxh5 {[%clk 0:00:32.1]} 42... Kf7 {[%clk 0:00:22.1]} 43. Kg5 {[%clk 0:00:31.7]}
43... Ke7 {[%clk 0:00:22.6]} 44. Kf4 {[%clk 0:00:26.4]} 44... Kd6 {[%clk
0:00:22.4]} 45. Nxf5+ {[%clk 0:00:25.4]} 45... Kxd5 {[%clk 0:00:18]} 46. Ne3+
{[%clk 0:00:23.1]} 46... Kd6 {[%clk 0:00:13.8]} 47. Kxe4 {[%clk 0:00:23.3]}
47... Ke6 {[%clk 0:00:13.5]} 48. Kd4 {[%clk 0:00:23.5]} 48... Kd6 {[%clk
0:00:13.5]} 49. Nf5+ {[%clk 0:00:22.8]} 49... Kc6 {[%clk 0:00:12.6]} 50. Ke5
{[%clk 0:00:20.3]} 50... Kc5 {[%clk 0:00:11.2]} 51. Nd4 {[%clk 0:00:20.4]} 51...
Kb6 {[%clk 0:00:08.9]} 52. Kd6 {[%clk 0:00:20.1]} 52... Ka6 {[%clk 0:00:04.7]}
53. Kc5 {[%clk 0:00:19]} 53... Kb7 {[%clk 0:00:01.4]} 54. Kxb5 {[%clk
0:00:18.4]} 1-0

[Event "Betsys MČR v online bleskovém šachu 2021"]
[Site "Chess.com"]
[Date "2021.04.17"]
[Round "5"]
[White "MilosJi"]
[Black "Saygram"]
[Result "0-1"]
[WhiteElo "2596"]
[BlackElo "2416"]
[TimeControl "180+1"]
[EndTime "9:48:13 PDT"]
[Termination "Uživatel Saygram zvítězil po vzdání soupeře"]

1. Nf3 {[%clk 0:03:00.9]} 1... Nf6 {[%clk 0:02:59.5]} 2. c4 {[%clk 0:03:00.1]}
2... e6 {[%clk 0:02:59.6]} 3. g3 {[%clk 0:03:00.1]} 3... d5 {[%clk 0:03:00.5]}
4. Bg2 {[%clk 0:03:00.4]} 4... dxc4 {[%clk 0:03:00.9]} 5. Qa4+ {[%clk
0:03:00.1]} 5... Nbd7 {[%clk 0:03:01.3]} 6. Qxc4 {[%clk 0:02:59.1]} 6... c5
{[%clk 0:03:01.5]} 7. O-O {[%clk 0:02:58.2]} 7... a6 {[%clk 0:03:01.8]} 8. a4
{[%clk 0:02:58]} 8... b5 {[%clk 0:02:59.5]} 9. Qc2 {[%clk 0:02:56.2]} 9... Bb7
{[%clk 0:02:59.2]} 10. d3 {[%clk 0:02:56.2]} 10... Bd6 {[%clk 0:02:56]} 11. Nc3
{[%clk 0:02:49.1]} 11... b4 {[%clk 0:02:37.1]} 12. Nd1 {[%clk 0:02:48.3]} 12...
O-O {[%clk 0:02:37.5]} 13. Ne3 {[%clk 0:02:48.2]} 13... Nd5 {[%clk 0:02:33.5]}
14. Nc4 {[%clk 0:02:48]} 14... Be7 {[%clk 0:02:33.6]} 15. a5 {[%clk 0:02:41.2]}
15... Bc6 {[%clk 0:02:28.2]} 16. e4 {[%clk 0:02:25]} 16... Nc7 {[%clk
0:02:24.8]} 17. Be3 {[%clk 0:02:23]} 17... Nb5 {[%clk 0:02:23.7]} 18. Rfc1
{[%clk 0:02:09.2]} 18... Rc8 {[%clk 0:02:23.2]} 19. h4 {[%clk 0:01:56.9]} 19...
f6 {[%clk 0:02:22.8]} 20. Qb3 {[%clk 0:01:51]} 20... Kh8 {[%clk 0:02:16.9]} 21.
Bh3 {[%clk 0:01:48.5]} 21... f5 {[%clk 0:02:15.5]} 22. Nfe5 {[%clk 0:01:36]}
22... Nxe5 {[%clk 0:02:04.3]} 23. Nxe5 {[%clk 0:01:34.7]} 23... Nd4 {[%clk
0:01:43.6]} 24. Bxd4 {[%clk 0:01:25.6]} 24... Qxd4 {[%clk 0:01:44.5]} 25. Qxe6
{[%clk 0:00:56.5]} 25... fxe4 {[%clk 0:01:44]} 26. Nf7+ {[%clk 0:00:56.5]} 26...
Rxf7 {[%clk 0:01:43]} 27. Qxc8+ {[%clk 0:00:56]} 27... Rf8 {[%clk 0:01:41]} 28.
Qxc6 {[%clk 0:00:55.7]} 28... Qxf2+ {[%clk 0:01:39.4]} 29. Kh1 {[%clk
0:00:55.7]} 29... Qxg3 {[%clk 0:01:25.1]} 30. Bg2 {[%clk 0:00:23.9]} 30... Bd6
{[%clk 0:01:07.3]} 31. Qxd6 {[%clk 0:00:13.5]} 31... Qxd6 {[%clk 0:01:07.6]} 32.
dxe4 {[%clk 0:00:13.7]} 32... Qg3 {[%clk 0:01:00.4]} 33. Rf1 {[%clk 0:00:13]}
33... Qxh4+ {[%clk 0:00:58.1]} 34. Kg1 {[%clk 0:00:13.1]} 34... Rxf1+ {[%clk
0:00:42.4]} 35. Rxf1 {[%clk 0:00:12]} 35... g6 {[%clk 0:00:41.2]} 36. b3 {[%clk
0:00:07.8]} 36... Qg3 {[%clk 0:00:39.7]} 37. Rf3 {[%clk 0:00:07.4]} 37... Qe5
{[%clk 0:00:38.2]} 38. Re3 {[%clk 0:00:05.5]} 38... Kg7 {[%clk 0:00:33.3]} 39.
Bf1 {[%clk 0:00:05.3]} 39... h5 {[%clk 0:00:25.3]} 40. Bxa6 {[%clk 0:00:03.9]}
40... Qf6 {[%clk 0:00:20.2]} 41. Bc4 {[%clk 0:00:02.1]} 41... Qd4 {[%clk
0:00:19.7]} 42. Kf2 {[%clk 0:00:02]} 42... g5 {[%clk 0:00:20.6]} 43. e5 {[%clk
0:00:02.5]} 43... Kf8 {[%clk 0:00:20.9]} 44. e6 {[%clk 0:00:02.9]} 44... Ke7
{[%clk 0:00:21]} 45. a6 {[%clk 0:00:03.4]} 45... Qd2+ {[%clk 0:00:18.2]} 46. Kf3
{[%clk 0:00:03.5]} 46... g4+ {[%clk 0:00:18.3]} 47. Ke4 {[%clk 0:00:03.8]} 47...
Qd4+ {[%clk 0:00:18]} 48. Kf5 {[%clk 0:00:01.7]} 48... Qxe3 {[%clk 0:00:18.9]}
49. a7 {[%clk 0:00:01.5]} 49... Qf3+ {[%clk 0:00:19]} 50. Kg5 {[%clk 0:00:01.8]}
50... Qa8 {[%clk 0:00:19.6]} 51. Kxh5 {[%clk 0:00:02.1]} 51... Qxa7 {[%clk
0:00:19.9]} 52. Kxg4 {[%clk 0:00:02.3]} 52... Qa1 {[%clk 0:00:18.9]} 53. Kf5
{[%clk 0:00:03.2]} 53... Qf6+ {[%clk 0:00:19]} 54. Ke4 {[%clk 0:00:04.1]} 54...
Kd6 {[%clk 0:00:19.3]} 55. Kd3 {[%clk 0:00:04.1]} 55... Qd4+ {[%clk 0:00:19.9]}
56. Ke2 {[%clk 0:00:04.1]} 56... Ke5 {[%clk 0:00:19.8]} 0-1

[Event "Betsys MČR v online bleskovém šachu 2021"]
[Site "Chess.com"]
[Date "2021.04.17"]
[Round "5"]
[White "jhdghaka"]
[Black "jankrelina07"]
[Result "1-0"]
[WhiteElo "1872"]
[BlackElo "1537"]
[TimeControl "180+1"]
[EndTime "9:48:13 PDT"]
[Termination "Uživatel jhdghaka zvítězil na čas"]

1. e4 {[%clk 0:03:00.9]} 1... c5 {[%clk 0:02:59.8]} 2. Nf3 {[%clk 0:03:00]} 2...
Nc6 {[%clk 0:02:59.9]} 3. Bb5 {[%clk 0:03:00]} 3... g6 {[%clk 0:02:58.6]} 4. O-O
{[%clk 0:02:58.6]} 4... Bg7 {[%clk 0:02:58.7]} 5. Re1 {[%clk 0:02:57.1]} 5... d6
{[%clk 0:02:58.8]} 6. c3 {[%clk 0:02:57.1]} 6... Bd7 {[%clk 0:02:58.6]} 7. d4
{[%clk 0:02:54.9]} 7... a6 {[%clk 0:02:49.2]} 8. Bf1 {[%clk 0:02:39.6]} 8... b6
{[%clk 0:02:40.8]} 9. Be3 {[%clk 0:02:31.6]} 9... Nf6 {[%clk 0:02:35.6]} 10.
Nbd2 {[%clk 0:02:28.4]} 10... O-O {[%clk 0:02:32.3]} 11. h3 {[%clk 0:02:28.4]}
11... Bc8 {[%clk 0:02:28]} 12. a3 {[%clk 0:02:09.8]} 12... Bb7 {[%clk
0:02:22.3]} 13. Bd3 {[%clk 0:02:09.4]} 13... Re8 {[%clk 0:02:18.4]} 14. Rc1
{[%clk 0:01:54.2]} 14... Rc8 {[%clk 0:02:06.7]} 15. Qe2 {[%clk 0:01:50.9]} 15...
Nb8 {[%clk 0:01:59.5]} 16. d5 {[%clk 0:01:46.8]} 16... Nfd7 {[%clk 0:01:44.7]}
17. b4 {[%clk 0:01:42.6]} 17... Ne5 {[%clk 0:01:44]} 18. Nxe5 {[%clk 0:01:42.1]}
18... Bxe5 {[%clk 0:01:43.5]} 19. f4 {[%clk 0:01:42.4]} 19... Bg7 {[%clk
0:01:43.1]} 20. Bf2 {[%clk 0:01:35.3]} 20... cxb4 {[%clk 0:01:29.6]} 21. cxb4
{[%clk 0:01:28.5]} 21... b5 {[%clk 0:01:29.1]} 22. Nf3 {[%clk 0:01:08.3]} 22...
Nd7 {[%clk 0:01:24.6]} 23. Qd2 {[%clk 0:00:52.6]} 23... Rxc1 {[%clk 0:01:19.7]}
24. Rxc1 {[%clk 0:00:51.5]} 24... Qa8 {[%clk 0:01:19.4]} 25. Rc2 {[%clk
0:00:34.8]} 25... Rc8 {[%clk 0:01:17.8]} 26. Kf1 {[%clk 0:00:34.6]} 26... Rxc2
{[%clk 0:01:17.1]} 27. Qxc2 {[%clk 0:00:34.7]} 27... Qc8 {[%clk 0:01:14.5]} 28.
Ke2 {[%clk 0:00:32.2]} 28... Qxc2+ {[%clk 0:01:12.7]} 29. Bxc2 {[%clk
0:00:33.1]} 29... e5 {[%clk 0:01:04.3]} 30. g3 {[%clk 0:00:27.7]} 30... exf4
{[%clk 0:00:59.5]} 31. gxf4 {[%clk 0:00:28.6]} 31... h6 {[%clk 0:00:54.8]} 32.
h4 {[%clk 0:00:24.1]} 32... Kh7 {[%clk 0:00:50.4]} 33. Nd4 {[%clk 0:00:18.2]}
33... Nf6 {[%clk 0:00:39.7]} 34. Kf3 {[%clk 0:00:13.7]} 34... Ne8 {[%clk
0:00:36.4]} 35. a4 {[%clk 0:00:10.6]} 35... bxa4 {[%clk 0:00:34]} 36. Bxa4
{[%clk 0:00:11.5]} 36... Nc7 {[%clk 0:00:32.5]} 37. Bc6 {[%clk 0:00:10.3]} 37...
Bc8 {[%clk 0:00:31.5]} 38. Nb3 {[%clk 0:00:07.9]} 38... Nb5 {[%clk 0:00:29.3]}
39. Na5 {[%clk 0:00:07.9]} 39... h5 {[%clk 0:00:22.1]} 40. Bb7 {[%clk
0:00:07.5]} 40... Bd7 {[%clk 0:00:19.1]} 41. Bxa6 {[%clk 0:00:07.3]} 41... Nc3
{[%clk 0:00:17.8]} 42. Bc4 {[%clk 0:00:06.7]} 42... Bh8 {[%clk 0:00:14.7]} 43.
Nc6 {[%clk 0:00:07.1]} 43... Na4 {[%clk 0:00:13.6]} 44. b5 {[%clk 0:00:07.2]}
44... Bf6 {[%clk 0:00:12]} 45. b6 {[%clk 0:00:07.3]} 45... Bc8 {[%clk
0:00:10.6]} 46. Na7 {[%clk 0:00:06.2]} 46... Bb7 {[%clk 0:00:10.1]} 47. Kg3
{[%clk 0:00:05.9]} 47... Nb2 {[%clk 0:00:08.5]} 48. Bb5 {[%clk 0:00:06.2]} 48...
Nd3 {[%clk 0:00:06]} 49. Bc6 {[%clk 0:00:06.5]} 49... Bxc6 {[%clk 0:00:03.1]}
50. dxc6 {[%clk 0:00:07.4]} 1-0